T,TT,Date,Purpose/Category (T),Department/Service (T),Amount Excl VAT,Beneficiary (T)
B,SI,12/09/2014,Consultants,Town Hall Annexe,"8,428.95",A R Argyle Frics
B,PI,05/11/2014,Grounds Maintenance,Horticultural Resource Centre,700.50,A.E. Roberts Nurserymen Ltd
B,PI,28/11/2014,Office Equipment,Burton Retail Market,"3,793.92",Abbey Glass (Derby) Ltd.
B,PI,18/11/2014,Printing and Stationery,Electoral Services,985.00,Access Point
B,PI,18/11/2014,Printing and Stationery,Electoral Services,590.00,Access Point
B,SI,01/09/2014,Maintenance Contracts,Burton Retail Market,886.28,ADT Fire And Security Plc
B,SI,20/10/2014,General Grants,Grants To Voluntary Orgnstns,"3,750.00",Age Uk Burton upon Trent
B,SI,12/08/2014,Training Expenses,Corporate Training,700.00,An Individual
B,SI,21/10/2014,Advance of Salary,Advance of Salary,552.26,An Individual
B,PI,26/11/2014,Temporary Staff Costs,Second Half Activity,576.00,An Individual
B,PI,25/11/2014,Training Expenses,Corporate Training,600.00,An Individual
B,SI,09/12/2014,Compensation Payment,Burton Retail Market,"1,813.98",An Individual
B,PI,06/10/2014,Arts Worker Fees,Arts Programme - Dance Development,804.00,An Individual
B,PI,30/09/2014,Arts Worker Fees,Music Project,"1,171.60",An Individual
B,SI,30/10/2014,Other Expenses,Brewhouse Community Ticket Sales,"1,025.00",An Individual
B,SI,30/09/2014,Other Expenses,Brewhouse Community Ticket Sales,517.00,An Individual
B,SI,05/09/2014,Consultants,Legal Services,"2,000.00",An Individual
B,SI,22/11/2014,Consultants,Asset Management,"3,000.00",An Individual
B,SI,13/11/2014,Consultants,Statutes Fair,"2,500.00",An Individual
B,SI,03/11/2014,Other Expenses,Brewhouse Community Ticket Sales,"4,597.50",An Individual
B,SI,21/10/2014,Advance of Salary,Advance of Salary,"5,254.59",An Individual
B,SI,03/11/2014,Other Expenses,Brewhouse Community Ticket Sales,"4,189.00",An Individual
B,SI,21/11/2014,Advance of Salary,Advance of Salary,"8,499.71",An Individual
B,SI,04/12/2014,Advance of Salary,Advance of Salary,"8,506.97",An Individual
B,SI,26/11/2014,Other Expenses,Brewhouse Community Ticket Sales,"1,625.00",An Individual
B,PI,28/10/2014,Arts Worker Fees,Brewhouse Arts Centre,800.00,An Individual
B,PI,06/10/2014,Arts Worker Fees,Music Project,804.00,An Individual
B,PI,19/10/2014,Repairs & Maintenance to Buildings,Brewhouse Arts Centre,595.00,An Individual
B,PI,05/11/2014,Office Equipment,Burton Retail Market,595.00,An Individual
B,SI,28/09/2014,Temporary Staff Costs,Brewhouse Arts Centre,900.00,An Individual
B,SI,26/11/2014,Temporary Staff Costs,Brewhouse Arts Centre,675.00,An Individual
B,SI,26/10/2014,Arts Worker Fees,Brewhouse Arts Centre,785.00,An Individual
B,SI,16/12/2014,Other Expenses,Brewhouse Community Ticket Sales,"4,369.00",An Individual
B,PI,06/10/2014,Arts Worker Fees,Music Project,"1,992.00",An Individual
B,SI,11/12/2014,Arts Worker Fees,Arts Programme - Dance Health,930.00,An Individual
B,PI,11/11/2014,Arts Worker Fees,Arts Programme - Dance Health,880.00,An Individual
B,SI,03/11/2014,Other Expenses,Brewhouse Community Ticket Sales,"1,535.00",An Individual
B,PI,24/11/2014,Office Equipment,Burton Retail Market,"1,724.25",Apex Market Stalls
B,SI,30/09/2014,Maintenance Contracts,Brewhouse Arts Centre,"1,940.00",Arc Mechanical and Electrical Ltd
B,SI,19/11/2014,Direct Purchases,DSO Stores Account,782.10,Arco Group
B,PI,09/12/2014,Maintenance Contracts,Brewhouse Arts Centre,853.27,Argos Business Solutions
B,SI,31/10/2014,Growth Point Work,New Growth Points,"5,180.00",Armstrong Stokes & Clayton Limited
B,SI,21/10/2014,General Grants,Grants To Voluntary Orgnstns,"2,800.00",Art & Soul Friendship Group
B,SI,01/09/2014,Software Licenses & Contracts,Burton Town Hall Civic Building,"2,113.08",Artifax Software Ltd
B,PI,24/11/2014,Swimming Badges,Meadowside Leisure Centre,716.02,Asa Awards & Merchandising Ltd
B,SI,30/09/2014,Community Transport Bus Passes,Travel Concessions,671.70,Ashbourne Community Transport
B,PI,10/11/2014,Sponsorships & Promotions,Burton Town Hall Civic Building,990.00,Ashby Big Band C/O David Bradford
B,SI,23/10/2014,Repairs & Maintenance to Buildings,Burton Retail Market,588.00,ASSA ABLOY Entrance Systems Ltd
B,PI,08/10/2014,Terms Maintenance,Open Spaces,540.00,Autocross Euroshel Ltd
B,SI,15/09/2014,Cleaning Contracts,Burton Retail Market,"2,150.00",Azmat Developments Ltd T/A Supawipe Cleaning Services
B,PI,30/11/2014,Office Equipment,Burton Retail Market,952.50,Azmat Developments Ltd T/A Supawipe Cleaning Services
B,SI,14/10/2014,Contract Payments,Uttoxeter Leisure Centre Capital,"270,273.92",B & K Building Services Ltd
B,SI,20/11/2014,Contract Payments,Uttoxeter Leisure Centre Capital,"532,184.46",B & K Building Services Ltd
B,SI,15/12/2014,Contract Payments,Uttoxeter Leisure Centre Capital,"600,971.04",B & K Building Services Ltd
B,PI,30/09/2014,Play Equipment,Open Spaces,579.25,B and S Chains
B,SI,30/09/2014,Other Equipment,Uttoxeter Leisure Centre,720.00,Balance Street Practice
B,SI,31/10/2014,Other Equipment,Uttoxeter Leisure Centre,800.00,Balance Street Practice
B,SI,30/11/2014,Other Equipment,Uttoxeter Leisure Centre,800.00,Balance Street Practice
B,PI,20/10/2014,Vehicle Maintenance Costs,Refuse Collection,550.00,Bartec Auto ID Ltd
B,PI,28/08/2014,Grounds Maintenance,Open Spaces,"1,349.99",Barton Fields
B,SI,28/11/2014,Contribution from Reserves,Planning Policy,"10,000.00",Barton Under Needwood Parish Council
B,SI,18/11/2014,General Grants,Neighbourhood Management,"1,122.89",Barton Under Needwood Parish Council
B,SI,29/09/2014,Third Party Payments,Street Cleaning,"5,233.98",Barton Under Needwood Parish Council
B,SI,10/10/2014,Legal Costs,Housing Standards,"3,586.21",Berrymans Lace Mawer
B,PI,06/10/2014,Training Expenses,Corporate Training,600.00,BFA Safety Training Ltd
B,PI,23/09/2014,Training Expenses,Corporate Training,900.00,BFA Safety Training Ltd
B,PI,25/11/2014,Training Expenses,Corporate Training,600.00,BFA Safety Training Ltd
B,PI,29/11/2014,Training Expenses,Corporate Training,950.00,BFA Safety Training Ltd
B,PI,11/11/2014,Training Expenses,Corporate Training,950.00,BFA Safety Training Ltd
B,SI,28/11/2014,Third Party Payments,Recycling,"6,452.05",Biffa Waste Services Limited
B,SI,21/11/2014,Third Party Payments,Recycling,"7,976.21",Biffa Waste Services Limited
B,SI,05/12/2014,Third Party Payments,Recycling,"7,365.96",Biffa Waste Services Limited
B,SI,14/11/2014,Third Party Payments,Recycling,"8,628.45",Biffa Waste Services Limited
B,SI,26/09/2014,Third Party Payments,Recycling,"14,243.72",Biffa Waste Services Limited
B,SI,10/10/2014,Third Party Payments,Recycling,"11,728.52",Biffa Waste Services Limited
B,SI,12/09/2014,Third Party Payments,Recycling,"16,598.80",Biffa Waste Services Limited
B,SI,19/09/2014,Third Party Payments,Recycling,"13,709.63",Biffa Waste Services Limited
B,SI,03/10/2014,Third Party Payments,Recycling,"11,470.75",Biffa Waste Services Limited
B,SI,07/11/2014,Third Party Payments,Recycling,"11,959.92",Biffa Waste Services Limited
B,SI,24/10/2014,Third Party Payments,Recycling,"11,189.54",Biffa Waste Services Limited
B,SI,17/10/2014,Third Party Payments,Recycling,"8,832.51",Biffa Waste Services Limited
B,SI,31/10/2014,Third Party Payments,Recycling,"10,680.84",Biffa Waste Services Limited
B,PI,09/10/2014,Advertising,Burton Retail Market,"1,125.00",Big Local App East Staffordshire Ltd
B,PI,08/12/2014,Advertising,Burton Retail Market,750.00,Big Local App East Staffordshire Ltd
B,PI,03/10/2014,Training Expenses,Corporate Training,"3,875.00",Birmingham City University
B,PI,21/10/2014,Grounds Maintenance,Open Spaces,"2,375.50",Bloomin Gardens And Landscapes Ltd
B,PI,29/10/2014,Grounds Maintenance,Open Spaces,"5,671.75",Bloomin Gardens And Landscapes Ltd
B,PI,05/11/2014,Software Licenses & Contracts,ICT,"2,103.72",Blue Cube Security Ltd
B,PI,21/10/2014,Maintenance Contracts,Wetmore Maltings (New Offices),"2,770.00",Borri Ltd
B,SI,31/10/2014,Contracted Grounds Maintenance,Open Spaces,"10,828.32",Boverton Nurseries Ltd
B,PI,03/09/2014,Maintenance Contracts,Brewhouse Arts Centre,933.19,Brake Bros Foodservice Ltd
B,PI,28/11/2014,Participatory Forums,Neighbourhood Management,"1,360.00",Branston Golf & Country Club
B,SI,18/11/2014,General Grants,Planning Policy,"8,794.99",Branston Parish Council
B,PI,30/09/2014,Swim Water Treatment,Meadowside Leisure Centre,"1,323.51",Brenntag UK Ltd
B,PI,25/11/2014,Swim Water Treatment,Meadowside Leisure Centre,"1,703.63",Brenntag UK Ltd
B,SI,13/10/2014,General Grants,Sports Development Project,"7,500.00",British Cycling
B,PI,24/11/2014,Training Expenses,Corporate Training,"3,190.00",British Gymnastics
B,PI,15/12/2014,Parking Tickets,Car Parks - General,"1,743.00",Brown Advertising and Design
B,SI,31/10/2014,Professional Fees,Civic Function Refurbishment (Capital),"1,074.21",Brownhill Hayward Brown Ltd
B,SI,09/12/2014,Other Expenses,Brewhouse Community Ticket Sales,811.00,Burton & South Derbyshire College
B,SI,16/12/2014,Other Expenses,Brewhouse Community Ticket Sales,"1,017.00",Burton & South Derbyshire College
B,SI,25/09/2014,Electricity,Shobnall Leisure Complex,599.08,Burton & South Derbyshire College
B,SI,23/10/2014,Electricity,Shobnall Leisure Complex,613.63,Burton & South Derbyshire College
B,SI,12/11/2014,Electricity,Shobnall Leisure Complex,669.93,Burton & South Derbyshire College
B,SI,16/10/2014,Partnership Board,LSP Partnership Projects,"8,375.00",Burton Albion Community Trust
B,SI,17/10/2014,General Grants,Grants To Voluntary Orgnstns,"4,280.10",Burton Albion Community Trust
B,SI,02/10/2014,General Grants,Grants To Voluntary Orgnstns,"1,250.00",Burton And District Mind
B,SI,13/10/2014,General Grants,Grants To Voluntary Orgnstns,"1,038.67",Burton Caribbean Association
B,PI,09/12/2014,Repairs & Maintenance to Buildings,Facilities Management,"1,452.00",Burton Environmental Services Ltd
B,SI,07/10/2014,Temporary Staff Costs,Millers Lane Depot (ex Trentforce prems),"2,000.00",Burton Hospitals NHS Foundation Trust
B,SI,06/11/2014,Temporary Staff Costs,Millers Lane Depot (ex Trentforce prems),"2,000.00",Burton Hospitals NHS Foundation Trust
B,SI,03/12/2014,Temporary Staff Costs,Millers Lane Depot (ex Trentforce prems),"2,000.00",Burton Hospitals NHS Foundation Trust
B,SI,13/11/2014,Rents,Community Sport (CSPAN),"1,740.00",Burton Leander Rowing Club
B,SI,22/10/2014,Third Party Payments,Recycling,580.79,Burton upon Trent & District YMCA
B,SI,20/10/2014,General Grants,Grants To Voluntary Orgnstns,"6,529.12",Burton upon Trent YMCA
B,SI,02/10/2014,General Grants,Grants To Voluntary Orgnstns,"1,835.00",Burton Youth For Christ
B,SI,10/09/2014,Contract Payments,Burton Retail Market,"4,310.00",C Henshaw BA DIP Archaeological Consultant
B,SI,14/11/2014,Set up Crews,Burton Town Hall Civic Building,"1,140.00",C W Services
B,SI,30/09/2014,Council Newsletter,Programmes & Information,"3,710.37",Cambridge Newspapers T/A Iliffe Print
B,SI,13/11/2014,Council Newsletter,Programmes & Information,"6,891.42",Cambridge Newspapers T/A Iliffe Print
B,PI,16/09/2014,Other Equipment,Licensing,"1,938.00",Canford Audio Plc
B,SI,26/09/2014,Hire of Equipment,Central Reprographics,"6,807.91",Canon Uk Ltd
B,PI,30/09/2014,Software Licenses & Contracts,Housing Benefits Admin,"25,000.00",Capita Software Services
B,PI,30/09/2014,Software Licenses & Contracts,Housing Benefits Admin,"25,000.00",Capita Software Services
B,SI,06/10/2014,Consultants,Capital Financing Costs,"4,875.00",Capita Treasury Solutions Ltd
B,PI,29/09/2014,Rents,Sports Development Project,529.00,Carver Road Community Centre
B,SI,11/09/2014,Direct Purchases,DSO Stores Account,"31,539.74",Central Fuel Oils
B,SI,05/11/2014,Direct Purchases,DSO Stores Account,"1,387.50",Central Fuel Oils
B,SI,14/10/2014,Direct Purchases,DSO Stores Account,"30,429.97",Central Fuel Oils
B,SI,12/10/2014,Partnership Board,LSP Partnership Projects,"10,000.00",Centre for Conflict Transformation Ltd
B,PI,17/10/2014,General Grants,Planning Policy,"1,400.00",Charisma Spatial Planning Limited
B,PI,27/11/2014,General Grants,Planning Policy,"1,400.00",Charisma Spatial Planning Limited
B,PI,09/12/2014,General Grants,Planning Policy,"1,400.00",Charisma Spatial Planning Limited
B,PI,15/10/2014,Portacabins - Shobnall Leisure Complex,Leisure Development,790.00,Chillaire Ltd
B,SI,09/12/2014,Other Expenses,Brewhouse Community Ticket Sales,"1,410.00",Chris Towe Promotions Ltd
B,PI,25/11/2014,Christmas Decorations,Grants To Voluntary Orgnstns,"1,200.00",Christmas Plus
B,PI,03/11/2014,Christmas Decorations,Grants To Voluntary Orgnstns,"5,802.00",Christmas Plus
B,PI,12/11/2014,Advertising,Burton Retail Market,"3,090.00",Christmas Plus
B,SI,18/09/2014,Advertising,Burton Town Hall Civic Building,"1,015.00",City Of Stoke On Trent
B,SI,12/11/2014,Penalty Charge Notice Processing,Car Parks - General,"3,255.83",City Of Stoke On Trent
B,SI,12/11/2014,Penalty Charge Notice Processing,Car Parks - General,973.25,City Of Stoke On Trent
B,PI,22/10/2014,Software Licenses & Contracts,Cemeteries,"1,500.00",Clear Skies Software
B,SI,26/09/2014,Growth Point Work,New Growth Points,"9,256.13",Clowes Securities (West Midlands) LLP
B,SI,05/10/2014,Temporary Staff Costs,Programmes & Information,538.24,Comensura Ltd
B,SI,16/11/2014,Temporary Staff Costs,Public Conveniences,520.30,Comensura Ltd
B,SI,28/09/2014,Temporary Staff Costs,Recycling,"4,748.65",Comensura Ltd
B,SI,12/10/2014,Temporary Staff Costs,Recycling,"4,511.94",Comensura Ltd
B,SI,21/09/2014,Temporary Staff Costs,Recycling,"3,208.88",Comensura Ltd
B,SI,02/11/2014,Temporary Staff Costs,Recycling,"3,997.06",Comensura Ltd
B,SI,29/10/2014,Temporary Staff Costs,Recycling,"3,966.59",Comensura Ltd
B,SI,19/10/2014,Temporary Staff Costs,Recycling,"3,501.86",Comensura Ltd
B,SI,05/10/2014,Temporary Staff Costs,Recycling,"2,514.99",Comensura Ltd
B,SI,09/11/2014,Temporary Staff Costs,Recycling,"2,519.45",Comensura Ltd
B,SI,30/11/2014,Temporary Staff Costs,Recycling,"2,226.80",Comensura Ltd
B,SI,07/12/2014,Temporary Staff Costs,Recycling,"3,035.57",Comensura Ltd
B,SI,14/12/2014,Temporary Staff Costs,Recycling,"1,412.70",Comensura Ltd
B,SI,16/11/2014,Temporary Staff Costs,Recycling,"1,831.55",Comensura Ltd
B,SI,23/11/2014,Temporary Staff Costs,Recycling,"2,898.92",Comensura Ltd
B,SI,28/09/2014,Temporary Staff Costs,Refuse Collection,"1,296.69",Comensura Ltd
B,SI,21/09/2014,Temporary Staff Costs,Refuse Collection,"1,687.86",Comensura Ltd
B,SI,02/11/2014,Temporary Staff Costs,Refuse Collection,"1,368.53",Comensura Ltd
B,SI,19/10/2014,Temporary Staff Costs,Refuse Collection,"1,058.27",Comensura Ltd
B,SI,29/10/2014,Temporary Staff Costs,Refuse Collection,992.56,Comensura Ltd
B,SI,05/10/2014,Temporary Staff Costs,Refuse Collection,"1,755.06",Comensura Ltd
B,SI,09/11/2014,Temporary Staff Costs,Refuse Collection,"2,426.59",Comensura Ltd
B,SI,05/10/2014,Temporary Staff Costs,Refuse Collection,"1,693.71",Comensura Ltd
B,SI,07/12/2014,Temporary Staff Costs,Refuse Collection,912.35,Comensura Ltd
B,SI,30/11/2014,Temporary Staff Costs,Refuse Collection,"1,843.34",Comensura Ltd
B,SI,14/12/2014,Temporary Staff Costs,Refuse Collection,"1,296.10",Comensura Ltd
B,SI,16/11/2014,Temporary Staff Costs,Refuse Collection,"1,635.93",Comensura Ltd
B,SI,23/11/2014,Temporary Staff Costs,Refuse Collection,815.90,Comensura Ltd
B,SI,12/10/2014,Temporary Staff Costs,Street Cleaning,"1,912.50",Comensura Ltd
B,SI,28/09/2014,Temporary Staff Costs,Street Cleaning,"1,459.56",Comensura Ltd
B,SI,28/09/2014,Temporary Staff Costs,Street Cleaning,891.00,Comensura Ltd
B,SI,21/09/2014,Temporary Staff Costs,Street Cleaning,"2,064.46",Comensura Ltd
B,SI,02/11/2014,Temporary Staff Costs,Street Cleaning,"1,961.40",Comensura Ltd
B,SI,29/10/2014,Temporary Staff Costs,Street Cleaning,"1,223.25",Comensura Ltd
B,SI,19/10/2014,Temporary Staff Costs,Street Cleaning,"1,458.12",Comensura Ltd
B,SI,09/11/2014,Temporary Staff Costs,Street Cleaning,"1,892.06",Comensura Ltd
B,SI,07/12/2014,Temporary Staff Costs,Street Cleaning,"2,004.46",Comensura Ltd
B,SI,30/11/2014,Temporary Staff Costs,Street Cleaning,"1,726.53",Comensura Ltd
B,SI,14/12/2014,Temporary Staff Costs,Street Cleaning,"1,614.70",Comensura Ltd
B,SI,16/11/2014,Temporary Staff Costs,Street Cleaning,"2,039.69",Comensura Ltd
B,SI,23/11/2014,Temporary Staff Costs,Street Cleaning,"1,904.48",Comensura Ltd
B,SI,28/09/2014,Temporary Staff Costs,Burton Retail Market,"1,001.12",Comensura Ltd
B,SI,30/11/2014,Temporary Staff Costs,Burton Retail Market,622.70,Comensura Ltd
B,SI,23/11/2014,Temporary Staff Costs,Burton Retail Market,"1,203.22",Comensura Ltd
B,SI,12/10/2014,Temporary Staff Costs,Legal Services,"1,081.08",Comensura Ltd
B,SI,28/09/2014,Temporary Staff Costs,Legal Services,"1,081.09",Comensura Ltd
B,SI,21/09/2014,Temporary Staff Costs,Legal Services,"1,081.08",Comensura Ltd
B,SI,02/11/2014,Temporary Staff Costs,Legal Services,"1,081.08",Comensura Ltd
B,SI,29/10/2014,Temporary Staff Costs,Legal Services,"1,081.08",Comensura Ltd
B,SI,19/10/2014,Temporary Staff Costs,Legal Services,"1,081.08",Comensura Ltd
B,SI,05/10/2014,Temporary Staff Costs,Legal Services,"1,081.08",Comensura Ltd
B,SI,09/11/2014,Temporary Staff Costs,Legal Services,"1,081.08",Comensura Ltd
B,SI,12/10/2014,Temporary Staff Costs,Facilities Management,986.40,Comensura Ltd
B,SI,21/09/2014,Temporary Staff Costs,Facilities Management,878.80,Comensura Ltd
B,SI,09/11/2014,Temporary Staff Costs,Facilities Management,"1,189.50",Comensura Ltd
B,SI,30/09/2014,Printing and Stationery,Central Reprographics,"1,369.06",Commercial Ltd
B,SI,28/11/2014,Printing and Stationery,Council Tax Collection,559.00,Critiqom Limited
B,PI,03/11/2014,Repairs & Maintenance to Buildings,Facilities Management,"5,482.05",Croft Building & Conservation Ltd
B,PI,11/11/2014,Grounds Maintenance,Open Spaces,"1,400.00",D S K Engineering Services
B,PI,11/12/2014,Grounds Maintenance,Open Spaces,600.00,D S K Engineering Services
B,PI,11/11/2014,Grounds Maintenance,Open Spaces,"1,000.00",D S K Engineering Services
B,PI,14/10/2014,Play Equipment,Open Spaces,660.00,D S K Engineering Services
B,PI,14/10/2014,Play Equipment,Open Spaces,"1,005.00",D S K Engineering Services
B,PI,11/12/2014,Play Equipment,Open Spaces,797.00,D S K Engineering Services
B,PI,11/12/2014,Play Equipment,Open Spaces,"1,392.00",D S K Engineering Services
B,PI,11/12/2014,Play Equipment,Open Spaces,865.00,D S K Engineering Services
B,PI,11/12/2014,Play Equipment,Open Spaces,"1,440.00",D S K Engineering Services
B,PI,07/11/2014,Play Equipment,Open Spaces,"1,665.00",D S K Engineering Services
B,PI,07/11/2014,Play Equipment,Open Spaces,846.00,D S K Engineering Services
B,PI,07/11/2014,Play Equipment,Open Spaces,580.00,D S K Engineering Services
B,PI,14/10/2014,Grounds Maintenance,Horticultural Resource Centre,500.00,D S K Engineering Services
B,PI,14/10/2014,Grounds Maintenance,Horticultural Resource Centre,550.00,D S K Engineering Services
B,PI,02/10/2014,Consultants,Brewhouse Arts Centre,850.00,Derby QUAD Ltd
B,PI,03/11/2014,Consultants,Brewhouse Arts Centre,850.00,Derby QUAD Ltd
B,PI,01/12/2014,Consultants,Brewhouse Arts Centre,850.00,Derby QUAD Ltd
B,SI,18/11/2014,Professional Support,Brewhouse Cafe/Bar,"7,664.90",Derby QUAD Ltd
B,SI,22/10/2014,Professional Support,Brewhouse Cafe/Bar,"4,106.77",Derby QUAD Ltd
B,SI,16/12/2014,Professional Support,Brewhouse Cafe/Bar,"6,766.50",Derby QUAD Ltd
B,SI,20/10/2014,Bus Passes,Customer Services Centres,615.50,Derbyshire County Council
B,SI,30/09/2014,Criminal Records Searches,Licensing,"1,276.00",Disclosure & Barring Services
B,SI,31/10/2014,Criminal Records Searches,Licensing,792.00,Disclosure & Barring Services
B,SI,30/11/2014,Criminal Records Searches,Licensing,836.00,Disclosure & Barring Services
B,PI,28/11/2014,Systems Development,Planning Delivery,"3,589.00",Dotted Eyes Ltd
B,SI,01/10/2014,Temporary Staff Costs,Planning Delivery,"2,154.92",DSW Planning Services Ltd
B,PI,03/11/2014,Temporary Staff Costs,Planning Delivery,"3,956.93",DSW Planning Services Ltd
B,SI,01/12/2014,Temporary Staff Costs,Planning Delivery,"3,264.57",DSW Planning Services Ltd
B,SI,30/09/2014,Kenneling & Other Expenses,Pest Control & Animal Welfare,979.66,Dun Roamin
B,SI,31/10/2014,Kenneling & Other Expenses,Pest Control & Animal Welfare,"1,030.66",Dun Roamin
B,SI,30/11/2014,Kenneling & Other Expenses,Pest Control & Animal Welfare,831.88,Dun Roamin
B,SI,01/10/2014,Electricity,Car Parks - General,"5,092.33",e.on
B,SI,19/10/2014,Electricity,Millers Lane Depot (ex Trentforce prems),918.30,e.on
B,SI,16/11/2014,Electricity,Millers Lane Depot (ex Trentforce prems),516.78,e.on
B,SI,03/12/2014,Gas,Miscellaneous Properties,882.75,e.on
B,SI,29/10/2014,Grounds Maintenance,Coopers Square Car Park - Surface,"13,693.35",E.on Energy Solutions Ltd
B,PI,13/10/2014,Car Parks Maintenance,Open Spaces,"1,628.82",E.on Energy Solutions Ltd
B,PI,13/10/2014,Car Parks Maintenance,Open Spaces,552.04,E.on Energy Solutions Ltd
B,SI,08/10/2014,Community Transport Bus Passes,Travel Concessions,"1,615.00",East Staffordshire Mobility Link
B,SI,07/11/2014,Community Transport Bus Passes,Travel Concessions,"1,638.80",East Staffordshire Mobility Link
B,SI,13/10/2014,General Grants,Grants To Voluntary Orgnstns,"12,900.00",East Staffs Citizens Advice Bureau
B,SI,07/11/2014,General Grants,Grants To Voluntary Orgnstns,"21,000.00",East Staffs Rights & Equality Council
B,SI,01/10/2014,Electricity,Brewhouse Arts Centre,676.08,Edf Energy 1 Ltd
B,SI,03/11/2014,Electricity,Brewhouse Arts Centre,754.69,Edf Energy 1 Ltd
B,SI,10/12/2014,Electricity,Brewhouse Arts Centre,676.08,Edf Energy 1 Ltd
B,SI,10/12/2014,Electricity,Brewhouse Arts Centre,628.54,Edf Energy 1 Ltd
B,SI,05/12/2014,Electricity,Brewhouse Arts Centre,676.08,Edf Energy 1 Ltd
B,SI,09/12/2014,Electricity,Brewhouse Arts Centre,784.75,Edf Energy 1 Ltd
B,SI,02/12/2014,Electricity,Brewhouse Arts Centre,971.50,Edf Energy 1 Ltd
B,SI,30/09/2014,Printing and Stationery,Electoral Services,"2,548.57",Electoral Reform Services
B,SI,29/08/2014,Printing and Stationery,Electoral Services,"2,183.50",Electoral Reform Services
B,SI,29/08/2014,Printing and Stationery,Electoral Services,"3,547.75",Electoral Reform Services
B,SI,29/08/2014,Printing and Stationery,Electoral Services,"22,331.38",Electoral Reform Services
B,SI,30/09/2014,Printing and Stationery,Electoral Services,"2,340.42",Electoral Reform Services
B,SI,25/09/2014,Maintenance Contracts,Brewhouse Arts Centre,"2,439.00",EPOS Group (Kent)
B,PI,11/12/2014,Training Expenses,Corporate Training,525.00,EQV UK Ltd
B,PI,19/11/2014,Training Expenses,Corporate Training,"1,575.00",EQV UK Ltd
B,PI,03/10/2014,General Grants,Planning Policy,"5,683.50",Erimax Ltd
B,SI,23/10/2014,General Grants,Grants To Voluntary Orgnstns,"5,990.62",ESCVS
B,SI,13/10/2014,General Grants,Grants To Voluntary Orgnstns,"1,313.87",ESREC
B,PI,20/10/2014,Vehicle Maintenance Costs,Refuse Collection,976.00,European Tyre Enterprise Ltd
B,SI,01/12/2014,Rents,Closed Circuit Cameras,"1,028.83",F&C Reit ASSET MANAGEMENT PLC
B,SI,17/12/2014,Contract Payments,Burton Retail Market,"1,098.76",Fairhurst Ward Abbotts
B,SI,18/11/2014,Contract Payments,Civic Function Refurbishment (Capital),"38,019.56",Fairhurst Ward Abbotts
B,PI,30/09/2014,Terms Maintenance,Open Spaces,"1,180.83",Fitzpatrick Woolmer Design & Publishing Ltd
B,PI,03/11/2014,Arts Worker Fees,Brewhouse Arts Centre,"1,316.00",Fluid Thinking
B,PI,28/11/2014,Arts Worker Fees,Brewhouse Arts Centre,"1,468.80",Fluid Thinking
B,PI,09/10/2014,Repairs & Maintenance to Buildings,Village & Community Halls,638.00,Forbes West Limited
B,PI,14/10/2014,Repairs & Maintenance to Buildings,Burton Retail Market,"3,225.77",Forbes West Limited
B,PI,09/10/2014,Repairs & Maintenance to Buildings,Voluntary Organisation Premises,887.95,Forbes West Limited
B,SI,31/10/2014,Direct Purchases,DSO Stores Account,903.00,Fuel Card Services Ltd
B,SI,30/09/2014,Direct Purchases,DSO Stores Account,853.75,Fuel Card Services Ltd
B,SI,30/11/2014,Direct Purchases,DSO Stores Account,832.25,Fuel Card Services Ltd
B,PI,21/10/2014,Repairs & Maintenance to Buildings,Burton Retail Market,"2,724.00",Gascoynes (Derby) Ltd
B,PI,31/10/2014,Repairs & Maintenance to Buildings,Burton Retail Market,"1,274.36",Gascoynes (Derby) Ltd
B,SI,08/12/2014,Direct Purchases,DSO Stores Account,"3,840.00",Gelpack Excelsior Ltd.
B,PI,25/11/2014,Repairs & Maintenance to Buildings,Leisure Centres,"1,715.46",Global Audio Visual Solutions Ltd
B,PI,24/09/2014,Other Equipment,Burton Town Hall Civic Building,"1,023.03",Gopak Ltd
B,PI,29/09/2014,Arts Programme Expenses,Music Project,"1,645.00",Goult Design Ltd
B,PI,07/11/2014,Advertising,Meadowside Leisure Centre,785.25,Goult Design Ltd
B,PI,23/10/2014,Vehicle Maintenance Costs,Cemeteries,547.60,GPL Hire
B,PI,15/10/2014,Vehicle Maintenance Costs,Recycling,910.00,GPL Hire
B,PI,15/10/2014,Vehicle Maintenance Costs,Refuse Collection,"1,300.81",GPL Hire
B,PI,01/10/2014,Vehicle Maintenance Costs,Refuse Collection,"3,466.67",GPL Hire
B,PI,01/10/2014,Vehicle Maintenance Costs,Refuse Collection,"3,005.17",GPL Hire
B,PI,01/10/2014,Vehicle Maintenance Costs,Refuse Collection,"3,005.17",GPL Hire
B,PI,01/10/2014,Vehicle Maintenance Costs,Refuse Collection,"3,005.17",GPL Hire
B,PI,01/10/2014,Vehicle Maintenance Costs,Refuse Collection,"6,010.34",GPL Hire
B,PI,01/10/2014,Vehicle Maintenance Costs,Refuse Collection,975.00,GPL Hire
B,PI,01/10/2014,Vehicle Maintenance Costs,Refuse Collection,"3,005.17",GPL Hire
B,PI,04/11/2014,Vehicle Maintenance Costs,Refuse Collection,"3,005.17",GPL Hire
B,PI,04/11/2014,Vehicle Maintenance Costs,Refuse Collection,975.00,GPL Hire
B,PI,04/11/2014,Vehicle Maintenance Costs,Refuse Collection,"3,466.67",GPL Hire
B,PI,04/11/2014,Vehicle Maintenance Costs,Refuse Collection,"3,005.17",GPL Hire
B,PI,04/11/2014,Vehicle Maintenance Costs,Refuse Collection,"3,005.17",GPL Hire
B,PI,04/11/2014,Vehicle Maintenance Costs,Refuse Collection,"3,005.17",GPL Hire
B,PI,04/11/2014,Vehicle Maintenance Costs,Refuse Collection,"3,005.17",GPL Hire
B,PI,04/11/2014,Vehicle Maintenance Costs,Refuse Collection,"3,005.17",GPL Hire
B,PI,01/10/2014,Vehicle Maintenance Costs,Street Cleaning,"1,729.00",GPL Hire
B,PI,01/10/2014,Vehicle Maintenance Costs,Street Cleaning,"1,729.00",GPL Hire
B,PI,01/10/2014,Vehicle Maintenance Costs,Street Cleaning,541.67,GPL Hire
B,PI,01/10/2014,Vehicle Maintenance Costs,Street Cleaning,541.67,GPL Hire
B,PI,01/10/2014,Vehicle Maintenance Costs,Street Cleaning,572.00,GPL Hire
B,PI,01/10/2014,Vehicle Maintenance Costs,Street Cleaning,689.00,GPL Hire
B,PI,01/10/2014,Vehicle Maintenance Costs,Street Cleaning,667.33,GPL Hire
B,PI,01/10/2014,Vehicle Maintenance Costs,Street Cleaning,"2,491.67",GPL Hire
B,PI,01/10/2014,Vehicle Maintenance Costs,Street Cleaning,"2,491.67",GPL Hire
B,PI,04/11/2014,Vehicle Maintenance Costs,Street Cleaning,541.67,GPL Hire
B,PI,04/11/2014,Vehicle Maintenance Costs,Street Cleaning,541.67,GPL Hire
B,PI,04/11/2014,Vehicle Maintenance Costs,Street Cleaning,667.33,GPL Hire
B,PI,04/11/2014,Vehicle Maintenance Costs,Street Cleaning,"2,491.67",GPL Hire
B,PI,04/11/2014,Vehicle Maintenance Costs,Street Cleaning,"2,491.67",GPL Hire
B,PI,04/11/2014,Vehicle Maintenance Costs,Street Cleaning,"1,729.00",GPL Hire
B,PI,04/11/2014,Vehicle Maintenance Costs,Street Cleaning,"1,729.00",GPL Hire
B,PI,04/11/2014,Vehicle Maintenance Costs,Street Cleaning,572.00,GPL Hire
B,PI,04/11/2014,Vehicle Maintenance Costs,Street Cleaning,689.00,GPL Hire
B,PI,01/10/2014,Vehicle Maintenance Costs,Trade Waste Recycling,"3,005.17",GPL Hire
B,PI,01/10/2014,Vehicle Maintenance Costs,Trade Waste Recycling,"1,993.33",GPL Hire
B,PI,23/10/2014,Vehicle Maintenance Costs,Trade Waste Recycling,957.16,GPL Hire
B,PI,04/11/2014,Vehicle Maintenance Costs,Trade Waste Recycling,"1,993.33",GPL Hire
B,PI,04/11/2014,Vehicle Maintenance Costs,Trade Waste Recycling,"3,005.17",GPL Hire
B,SI,22/09/2014,External Audit Fees,External Audit,"16,058.00",Grant Thornton UK LLP
B,SI,08/12/2014,External Audit Fees,External Audit,"16,059.00",Grant Thornton UK LLP
B,SI,12/12/2014,External Audit Fees,External Audit,"21,296.00",Grant Thornton UK LLP
B,PI,22/11/2014,Training Expenses,Corporate Training,545.00,Greenfield Training & Consultancy Ltd
B,PI,01/10/2014,Vehicle Maintenance Costs,Recycling,"8,536.66",Gullivers Municipal Hire Services
B,PI,01/10/2014,Vehicle Maintenance Costs,Recycling,"4,268.33",Gullivers Municipal Hire Services
B,PI,01/10/2014,Vehicle Maintenance Costs,Recycling,"3,575.00",Gullivers Municipal Hire Services
B,PI,01/11/2014,Vehicle Maintenance Costs,Recycling,"3,575.00",Gullivers Municipal Hire Services
B,PI,01/11/2014,Vehicle Maintenance Costs,Recycling,"4,268.33",Gullivers Municipal Hire Services
B,PI,01/11/2014,Vehicle Maintenance Costs,Recycling,"8,536.66",Gullivers Municipal Hire Services
B,PI,01/10/2014,Vehicle Maintenance Costs,Refuse Collection,"3,575.00",Gullivers Municipal Hire Services
B,PI,01/11/2014,Vehicle Maintenance Costs,Refuse Collection,"3,575.00",Gullivers Municipal Hire Services
B,PI,05/09/2014,Consultants,Planning Policy,"3,975.00",GVA
B,SI,29/10/2014,Consultants,Planning Policy,"1,200.00",GVA
B,PI,01/09/2014,Maintenance Contracts,Brewhouse Arts Centre,"6,638.00",H F Supplies Ltd
B,PI,03/10/2014,Maintenance Contracts,Brewhouse Arts Centre,600.00,H F Supplies Ltd
B,SI,01/10/2014,Vehicle Maintenance Costs,Street Cleaning,"1,516.67",Hako Machines Limited
B,SI,30/09/2014,Vehicle Maintenance Costs,Street Cleaning,"1,516.67",Hako Machines Limited
B,PI,28/11/2014,Vehicle Maintenance Costs,Street Cleaning,"1,581.66",Hako Machines Limited
B,SI,06/11/2014,Vehicle Maintenance Costs,Street Cleaning,"1,516.67",Hako Machines Limited
B,SI,10/10/2014,Consultants,Asset Management,"2,500.00",Hansons Auctioneers and Valuers Ltd
B,PI,09/10/2014,Advertising,Burton Retail Market,825.00,Hardy Signs Ltd
B,PI,08/10/2014,Advertising,Burton Retail Market,550.00,Hardy Signs Ltd
B,PI,27/10/2014,Advertising,Burton Retail Market,"1,260.00",Hardy Signs Ltd
B,PI,01/12/2014,Advertising,Burton Retail Market,"1,575.00",Hardy Signs Ltd
B,PI,17/11/2014,Grounds Maintenance,Open Spaces,640.00,Hardy Signs Ltd
B,SI,21/10/2014,General Grants,Grants To Voluntary Orgnstns,"1,158.58",Harmony Group
B,PI,12/12/2014,Repairs & Maintenance to Buildings,Yeoman Industrial Estate,"15,290.00",Harvey & Clark Ltd
B,SI,30/09/2014,Contract Payments,Housing Projects,"53,323.99",Harvey & Clark Ltd
B,SI,20/10/2014,Contract Payments,Housing Projects,"63,376.61",Harvey & Clark Ltd
B,PI,10/12/2014,Default Work,Housing Standards,860.00,Harvey & Clark Ltd
B,PI,10/12/2014,Default Work,Housing Standards,"4,873.00",Harvey & Clark Ltd
B,PI,12/11/2014,Office Equipment,Burton Retail Market,954.00,Harvey & Clark Ltd
B,SI,13/10/2014,General Grants,Grants To Voluntary Orgnstns,"3,500.00",Harvey Girls
B,PI,17/10/2014,Medical Examinations,Human Resources,623.03,Hobson Health
B,PI,17/11/2014,Medical Examinations,Human Resources,623.03,Hobson Health
B,SI,15/10/2014,Commuted Sum Expenditure,Planning Delivery,"75,000.00",Hollands Sports Club
B,SI,11/07/2014,General Grants,Grants To Voluntary Orgnstns,"4,485.25",Home-Start East Staffordshire
B,SI,01/11/2014,Miscellaneous Licenses,Brewhouse Arts Centre,"1,964.95",Honeywell Control Systems Ltd
B,PI,08/10/2014,Contract Payments,Uttoxeter Leisure Centre Capital,"3,045.16",Hopkins Catering Equipment Ltd
B,SI,20/11/2014,General Grants,Planning Policy,"3,330.00",Horninglow & Eton Parish Council
B,SI,04/12/2014,General Grants,Neighbourhood Management,"2,440.00",Horninglow & Eton Parish Council
B,SI,10/12/2014,Car Park Income,High Street Non Retained,"2,703.27",Iliffe News & Media
B,PI,08/09/2014,War Memorial,Open Spaces,"18,168.00",IMI
B,PI,08/09/2014,War Memorial,Open Spaces,"1,909.00",IMI
B,PI,04/09/2014,War Memorial,Open Spaces,"1,375.00",IMI
B,PI,04/09/2014,War Memorial,Open Spaces,625.00,IMI
B,PI,29/08/2014,Software Licenses & Contracts,Recycling,"5,491.00",Integrated Skills Limited
B,SI,17/10/2014,Telephones,Switchboard and Reception,"1,255.04",Intrinsic Technology Ltd
B,SI,14/11/2014,Telephones,Switchboard and Reception,"1,231.00",Intrinsic Technology Ltd
B,SI,17/12/2014,Telephones,Switchboard and Reception,"1,192.59",Intrinsic Technology Ltd
B,SI,24/10/2014,Security of Premises,Burton Retail Market,"1,088.00",J & S Security Services
B,SI,28/11/2014,Security of Premises,Burton Retail Market,"1,088.00",J & S Security Services
B,PI,16/12/2014,Repairs & Maintenance to Buildings,Burton Retail Market,875.00,J D Electrical & Mechanical Services Ltd
B,PI,13/11/2014,Contract Payments,Uttoxeter Leisure Centre Capital,648.86,J P Lennard Ltd
B,SI,01/12/2014,Rents,Open Spaces,"2,500.00",J T Leavesley Limited
B,SI,29/10/2014,Cash Collection Security Services,Car Parks - General,"4,109.70",Jade Security Services Ltd
B,SI,31/10/2014,Cash Collection Security Services,Car Parks - General,"4,178.10",Jade Security Services Ltd
B,PI,13/11/2014,Training Expenses,Corporate Training,909.28,James Button & Co Solicitors
B,PI,03/10/2014,Grounds Maintenance,Horticultural Resource Centre,"1,315.75",James Coles & Sons (Nurseries)
B,SI,05/11/2014,Overs and Shorts,Income Management,675.10,JCB Excavators Ltd
B,SI,23/10/2014,Legal Costs,Planning Delivery,"2,687.50",JMW Planning Limited
B,SI,29/10/2014,Software Licenses & Contracts,Planning Delivery,"1,599.00",John E Wright & Co Ltd
B,SI,17/12/2014,Consultants,Asset Management,"2,885.00",John Houston Consulting
B,SI,11/09/2014,General Grants,Enterprise,"3,240.00",Jones & Clark (B-O-T) Ltd
B,PI,17/11/2014,Repairs & Maintenance to Buildings,Facilities Management,"1,207.54",Kalamazoo Secure Solutions Limited
B,PI,04/12/2014,Contract Payments,Uttoxeter Leisure Centre Capital,"2,469.46",Karcher UK Ltd
B,PI,02/10/2014,"Clothing, Uniforms and Laundry",Customer Services Centres,"6,346.60",Keltic
B,SI,12/11/2014,Consultants,Planning Policy,600.00,Kings Chambers
B,SI,08/10/2014,Legal Costs,Planning Delivery,850.00,Kings Chambers
B,SI,26/09/2014,Legal Costs,Planning Delivery,750.00,Kings Chambers
B,SI,02/12/2014,Rents,Coopers Square Car Park - Surface,"3,000.00",Knight Frank LLP
B,PI,07/10/2014,Other Equipment,Office Cleaning,965.55,Knighton Janitorial
B,PI,23/09/2014,Play Equipment,Open Spaces,"2,819.00",Kompan Ltd
B,SI,28/11/2014,General Grants,Enterprise,"3,136.02",L.D.C.
B,SI,19/11/2014,Professional Support,Financial Management Unit,"4,911.00",LAVAT Consulting Ltd
B,PI,12/11/2014,Tools & Implements,Horticultural Resource Centre,531.10,LBS Worldwide Ltd
B,PI,02/12/2014,Contract Payments,Uttoxeter Leisure Centre Capital,"2,105.00",Leavesley Container Services
B,PI,07/11/2014,Hire of Equipment,Brewhouse Arts Centre,725.00,Lichfield Light & Sound Company Ltd
B,SI,18/11/2014,Other Expenses,Brewhouse Community Ticket Sales,"6,372.00",Little Theatre Company
B,PI,16/11/2014,Advertising,Planning Delivery,559.44,Local World Ltd
B,PI,15/10/2014,Training Expenses,Corporate Training,"1,000.00",Loughborough College
B,SI,16/10/2014,Training Expenses,Corporate Training,900.00,Loughborough College
B,SI,05/12/2014,Vehicle Maintenance Costs,Street Cleaning,"1,014.50",M & K Plant Repairs
B,PI,07/11/2014,Arts Worker Fees,Brewhouse Arts Centre,"1,350.00",M & M Productions
B,PI,07/11/2014,Arts Worker Fees,Brewhouse Arts Centre,650.00,M & M Productions
B,SI,04/11/2014,Fees and Charges,Planning Delivery,"1,925.00",M J Barrett (Developments) Ltd
B,PI,28/10/2014,Repairs & Maintenance to Buildings,Burton Retail Market,"3,711.00",M W Cripwell Ltd
B,PI,10/10/2014,Repairs & Maintenance to Buildings,Town Hall Annexe,676.03,M W Cripwell Ltd
B,PI,30/09/2014,Repairs & Maintenance to Buildings,Town Hall Annexe,"3,339.15",M W Cripwell Ltd
B,PI,15/10/2014,Repairs & Maintenance to Buildings,Town Hall Annexe,796.83,M W Cripwell Ltd
B,PI,15/10/2014,Repairs & Maintenance to Buildings,Town Hall Annexe,"6,870.00",M W Cripwell Ltd
B,PI,30/09/2014,Repairs & Maintenance to Buildings,Town Hall Annexe,"3,295.53",M W Cripwell Ltd
B,PI,31/10/2014,Repairs & Maintenance to Buildings,Town Hall Annexe,"1,009.38",M W Cripwell Ltd
B,PI,31/10/2014,Repairs & Maintenance to Buildings,Town Hall Annexe,"2,367.03",M W Cripwell Ltd
B,SI,31/10/2014,Repairs & Maintenance to Buildings,Town Hall Annexe,"3,066.31",M W Cripwell Ltd
B,SI,31/10/2014,Repairs & Maintenance to Buildings,Town Hall Annexe,696.23,M W Cripwell Ltd
B,PI,30/09/2014,Repairs & Maintenance to Buildings,Town Hall Annexe,"20,538.07",M W Cripwell Ltd
B,PI,30/09/2014,Repairs & Maintenance to Buildings,Town Hall Annexe,"6,628.02",M W Cripwell Ltd
B,PI,26/11/2014,Repairs & Maintenance to Buildings,Town Hall Annexe,765.20,M W Cripwell Ltd
B,PI,31/10/2014,Repairs & Maintenance to Buildings,Town Hall Annexe,"4,034.15",M W Cripwell Ltd
B,PI,04/09/2014,Contract Payments,Housing Projects,"2,000.00",Mace Ltd
B,SI,24/07/2014,Contract Payments,Housing Projects,"3,000.00",Mace Ltd
B,SI,01/10/2014,Contract Payments,Housing Projects,"1,450.00",Mace Ltd
B,PI,08/10/2014,Arts Worker Fees,Music Project,"10,000.00",Make Some Noise West Midlands
B,SI,11/11/2014,Training Expenses,Corporate Training,950.00,Mallard Consultancy Ltd
B,PI,25/09/2014,Repairs & Maintenance to Buildings,Brewhouse Arts Centre,875.24,Marston�s Plc
B,PI,18/09/2014,Maintenance Contracts,Brewhouse Arts Centre,832.27,Marston�s Plc
B,PI,09/10/2014,Maintenance Contracts,Brewhouse Arts Centre,800.44,Marston�s Plc
B,PI,30/10/2014,Maintenance Contracts,Brewhouse Arts Centre,653.25,Marston�s Plc
B,PI,20/11/2014,Maintenance Contracts,Brewhouse Arts Centre,731.51,Marston�s Plc
B,PI,06/11/2014,Maintenance Contracts,Brewhouse Arts Centre,"1,491.00",Marston�s Plc
B,PI,11/11/2014,Play Equipment,Open Spaces,"1,789.92",Medway Galvanising Company Ltd
B,PI,10/11/2014,Grounds Maintenance,Open Spaces,"1,670.00",Met Office
B,SI,20/10/2014,Disabled Facility Grant Payments,Housing Standards,"16,950.00",Metric Building Services Ltd
B,SI,15/12/2014,Disabled Facility Grant Payments,Housing Standards,"10,000.50",Metric Building Services Ltd
B,SI,23/10/2014,Grounds Maintenance,Car Parks - General,527.00,Metric Group Limited
B,SI,04/11/2014,Grounds Maintenance,Car Parks - General,527.00,Metric Group Limited
B,SI,03/12/2014,Grounds Maintenance,Car Parks - General,527.00,Metric Group Limited
B,PI,06/10/2014,Repairs and Maintenance of Car Park Ticket Machines,Car Parks - General,929.67,Metric Group Limited
B,PI,08/08/2014,Repairs and Maintenance of Car Park Ticket Machines,Car Parks - General,"1,109.80",Metric Group Limited
B,SI,03/12/2014,Repairs and Maintenance of Car Park Ticket Machines,Car Parks - General,"3,070.20",Metric Group Limited
B,PI,16/12/2014,Repairs & Maintenance to Buildings,Customer Services Centres,525.00,Midland Fire & Security Services Ltd
B,PI,16/12/2014,Repairs & Maintenance to Buildings,Customer Services Centres,890.00,Midland Fire & Security Services Ltd
B,PI,16/12/2014,Repairs & Maintenance to Buildings,Facilities Management,632.00,Midland Fire & Security Services Ltd
B,PI,16/12/2014,Repairs & Maintenance to Buildings,Facilities Management,"1,737.00",Midland Fire & Security Services Ltd
B,PI,16/12/2014,Repairs & Maintenance to Buildings,Wetmore Maltings (New Offices),"1,750.00",Midland Fire & Security Services Ltd
B,PI,19/09/2014,Taxi Panels,Licensing,"1,204.00",Mogo Uk
B,PI,05/12/2014,Taxi Panels,Licensing,688.00,Mogo Uk
B,SI,26/09/2014,General Grants,Enterprise,"1,475.00",M-piric Audio Visual Ltd
B,SI,04/11/2014,General Grants,Enterprise,"1,451.00",M-piric Audio Visual Ltd
B,PI,13/10/2014,Training Expenses,Corporate Training,"1,120.00",Myerscough College
B,PI,30/09/2014,Grounds Maintenance,Open Spaces,883.80,N A Brown Ltd
B,PI,28/11/2014,Sweeping,Open Spaces,707.40,N A Brown Ltd
B,SI,14/10/2014,Rents,Community Sport (CSPAN),"1,500.00",National Football Centre
B,PI,27/11/2014,Medical Examinations,Human Resources,"1,100.00",New Leaf Health Ltd
B,SI,03/10/2014,Third Party Payments,Internal Audit,"6,933.33",NHS Arden CSU
B,SI,07/11/2014,Third Party Payments,Internal Audit,"6,933.33",NHS Arden CSU
B,SI,06/12/2014,Third Party Payments,Internal Audit,"6,933.33",NHS Arden CSU
B,SI,30/09/2014,Family Nurse,Partnerships,"10,000.00",NHS England
B,SI,01/10/2014,Website Construction & Maintenance,Burton Retail Market,"1,999.90",NMA Ltd
B,PI,30/09/2014,Systems Development,Planning Delivery,625.00,Northgate Information Solutions UK Ltd
B,PI,30/09/2014,Temporary Staff Costs,Housing Benefits Admin,"4,480.00",Northgate Information Solutions UK Ltd
B,PI,31/10/2014,Temporary Staff Costs,Housing Benefits Admin,"3,440.00",Northgate Information Solutions UK Ltd
B,PI,28/11/2014,Temporary Staff Costs,Housing Benefits Admin,"2,720.00",Northgate Information Solutions UK Ltd
B,PI,24/11/2014,Software Licenses & Contracts,Housing Benefits Admin,"8,685.00",Northgate Information Solutions UK Ltd
B,PI,30/09/2014,Temporary Staff Costs,Council Tax Collection,"2,240.00",Northgate Information Solutions UK Ltd
B,PI,01/12/2014,Temporary Staff Costs,Council Tax Collection,"3,520.00",Northgate Information Solutions UK Ltd
B,PI,31/10/2014,Temporary Staff Costs,Council Tax Collection,"1,440.00",Northgate Information Solutions UK Ltd
B,SI,10/11/2014,Kenneling & Other Expenses,Pest Control & Animal Welfare,955.81,Northgate Lodge
B,SI,01/09/2014,Kenneling & Other Expenses,Pest Control & Animal Welfare,787.51,Northgate Lodge
B,PI,01/10/2014,Play Equipment,Open Spaces,650.00,Nova Sport Ltd
B,PI,29/09/2014,Play Equipment,Open Spaces,650.00,Nova Sport Ltd
B,PI,29/09/2014,Play Equipment,Open Spaces,650.00,Nova Sport Ltd
B,PI,02/12/2014,Play Equipment,Open Spaces,650.00,Nova Sport Ltd
B,PI,30/11/2014,"Clothing, Uniforms and Laundry",Meadowside Leisure Centre,568.10,O. Heap & Son (Derby) Ltd
B,PI,30/06/2014,IEG Core Contribution,ICT,"2,000.00",Optevia Ltd
B,PI,30/09/2014,Training Expenses,Corporate Training,550.00,Orange-Learning Limited
B,SI,10/09/2014,Disabled Facility Grant Payments,Housing Standards,"6,091.50",Orbit Housing Association
B,SI,25/09/2014,Disabled Facility Grant Payments,Housing Standards,"7,921.61",Orbit Housing Association
B,SI,25/09/2014,Disabled Facility Grant Payments,Housing Standards,"4,019.40",Orbit Housing Association
B,SI,02/10/2014,Disabled Facility Grant Payments,Housing Standards,"2,369.62",Orbit Housing Association
B,SI,02/10/2014,Disabled Facility Grant Payments,Housing Standards,"3,737.45",Orbit Housing Association
B,SI,26/09/2014,Disabled Facility Grant Payments,Housing Standards,"2,362.50",Orbit Housing Association
B,SI,26/09/2014,Disabled Facility Grant Payments,Housing Standards,"4,098.30",Orbit Housing Association
B,SI,22/10/2014,Disabled Facility Grant Payments,Housing Standards,"5,467.00",Orbit Housing Association
B,SI,16/10/2014,Disabled Facility Grant Payments,Housing Standards,"3,000.00",Orbit Housing Association
B,SI,21/10/2014,Disabled Facility Grant Payments,Housing Standards,"4,559.50",Orbit Housing Association
B,SI,21/10/2014,Disabled Facility Grant Payments,Housing Standards,"3,607.57",Orbit Housing Association
B,SI,21/10/2014,Disabled Facility Grant Payments,Housing Standards,"4,295.50",Orbit Housing Association
B,SI,07/08/2014,Disabled Facility Grant Payments,Housing Standards,"9,693.70",Orbit Housing Association
B,SI,03/07/2014,Disabled Facility Grant Payments,Housing Standards,"4,304.49",Orbit Housing Association
B,SI,21/10/2014,Disabled Facility Grant Payments,Housing Standards,"1,971.42",Orbit Housing Association
B,SI,21/10/2014,Disabled Facility Grant Payments,Housing Standards,"4,048.00",Orbit Housing Association
B,SI,15/12/2014,Wasps Expenditure,Ward Action Service Plans,830.00,ORSuk
B,SI,15/10/2014,General Grants,Enterprise,"3,439.60",Parker & Son (Printers) Ltd
B,PI,13/11/2014,Advertising,Enterprise,677.00,Parker & Son (Printers) Ltd
B,SI,24/10/2014,Penalty Charge Notice Processing,Decriminalised Parking,661.10,PATROL
B,SI,02/12/2014,Other Expenses,Brewhouse Community Ticket Sales,970.00,Performing Stars Academy Limited
B,PI,13/11/2014,Office Equipment,Community and Civil Enforcement,"1,204.00",Personal Best Life Coaching
B,PI,06/11/2014,Other Equipment,Meadowside Leisure Centre,900.00,Phoenix Joinery
B,SI,30/09/2014,Cleaning Contracts,Meadowside Leisure Centre,"1,011.32",PHS Group Plc
B,SI,23/11/2014,Maintenance Contracts,Public Conveniences,"1,708.05",PHS Group Plc
B,PI,29/09/2014,Software Licenses & Contracts,Financial Management Unit,779.20,Pillar Solutions Ltd
B,SI,22/10/2014,Franking Machine Postages,Central Reprographics,"10,000.00",Pitney Bowes Finance Ltd
B,SI,22/11/2014,Franking Machine Postages,Central Reprographics,"5,009.00",Pitney Bowes Finance Ltd
B,SI,16/10/2014,Public/Civic Function Expenses,Twinning and Civic Ceremonials,"5,161.50",Plyvine Catering Ltd
B,PI,01/10/2014,CCTV Manning Contract,Closed Circuit Cameras,"12,368.36",Premier Security Services
B,PI,01/11/2014,CCTV Manning Contract,Closed Circuit Cameras,"12,368.36",Premier Security Services
B,PI,01/12/2014,CCTV Manning Contract,Closed Circuit Cameras,"12,368.36",Premier Security Services
B,SI,05/12/2014,Rents,Millers Lane Depot (ex Trentforce prems),"6,562.50",Preston Securities Limited
B,SI,07/11/2014,Software Licenses & Contracts,ICT,"1,260.00",ProcessFlows Uk Ltd
B,SI,21/10/2014,General Grants,Grants To Voluntary Orgnstns,"1,839.75",Pulse for Music Staffordshire CIC
B,PI,27/11/2014,Christmas Decorations,Grants To Voluntary Orgnstns,"2,800.00",Pyrotex Fireworx Ltd
B,PI,22/10/2014,Other Equipment,Closed Circuit Cameras,"1,474.00",Quadrant Security Group
B,PI,08/10/2014,Maintenance Agreements,Closed Circuit Cameras,"1,653.00",Quadrant Security Group
B,SI,03/12/2014,Maintenance Agreements,Closed Circuit Cameras,"1,653.00",Quadrant Security Group
B,SI,05/11/2014,Maintenance Agreements,Closed Circuit Cameras,"1,653.00",Quadrant Security Group
B,SI,28/11/2014,Training Expenses,Corporate Training,"1,282.70",Quality Transport Training Ltd
B,SI,09/12/2014,Books and Publications,Business Rate Collection,720.00,Rating & Valuation Reporter
B,PI,01/12/2014,General Grants,Grants for Sport,625.00,Red Door Studios
B,SI,30/09/2014,Scanning,Planning Delivery,"1,236.25",Resolution Data Management Ltd
B,SI,30/09/2014,Scanning,Planning Delivery,"1,282.16",Resolution Data Management Ltd
B,SI,30/11/2014,Scanning,Planning Delivery,"2,381.70",Resolution Data Management Ltd
B,SI,31/10/2014,Scanning,Planning Delivery,"2,692.93",Resolution Data Management Ltd
B,SI,31/10/2014,Scanning,Planning Delivery,537.68,Resolution Data Management Ltd
B,SI,07/11/2014,General Grants,Grants To Voluntary Orgnstns,"1,188.60",Re-Solv
B,PI,18/10/2014,Training Expenses,Housing Benefits Admin,500.00,Richard Stanier Ltd
B,PI,11/12/2014,Training Expenses,Corporate Training,"1,500.00",Richard Stanier Ltd
B,SI,08/10/2014,General Grants,Enterprise,"1,250.00",Righttrack Engineers Limited
B,SI,13/10/2014,Wasps Expenditure,Ward Action Service Plans,"1,000.00",Rolleston On Dove Parish Council
B,SI,15/10/2014,Advertising,Asset Management,"1,575.00",Rushton Hickman Partnership
B,SI,25/11/2014,Electricity,Wetmore Maltings (New Offices),723.70,Rushton Hickman Partnership
B,SI,04/09/2014,Service Charges,Wetmore Maltings (New Offices),"5,461.62",Rushton Hickman Partnership
B,PI,29/04/2014,Third Party Payments,Recycling,948.36,SAICA Natur UK Ltd
B,PI,05/09/2014,Third Party Payments,Recycling,853.00,SAICA Natur UK Ltd
B,PI,06/06/2014,Third Party Payments,Recycling,533.84,SAICA Natur UK Ltd
B,PI,29/04/2014,Third Party Payments,Recycling,540.00,SAICA Natur UK Ltd
B,SI,14/10/2014,General Grants,Grants To Voluntary Orgnstns,"1,750.00",SARAC Burton & District
B,PI,31/10/2014,LDF Preparation and Examination,Planning Policy,"2,118.00",Scorpion Event Solutions Ltd.
B,PI,09/12/2014,Training Expenses,Corporate Training,835.00,Serco Limited
B,PI,30/11/2014,Office Equipment,Burton Retail Market,"1,279.00",Serious Waste Management Limited
B,SI,03/11/2014,Water Services,Meadowside Leisure Centre,"9,915.84",Severn Trent Water (Tvte)
B,SI,20/10/2014,Lease of vending machine,Shobnall Leisure Complex,837.44,Siemens Financial Services Ltd
B,PI,09/10/2014,Repairs & Maintenance to Buildings,Brewhouse Arts Centre,"1,000.00",Siemens Plc
B,PI,28/09/2014,Website Construction & Maintenance,Programmes & Information,"1,149.04",Siteimprove Ltd
B,SI,30/09/2014,Other Equipment,Uttoxeter Leisure Centre,"1,931.00",Smallwood Manor School Enterprises Ltd
B,SI,30/09/2014,Other Equipment,Uttoxeter Leisure Centre,"2,413.75",Smallwood Manor School Enterprises Ltd
B,SI,30/09/2014,Other Equipment,Uttoxeter Leisure Centre,"1,448.25",Smallwood Manor School Enterprises Ltd
B,SI,09/12/2014,Other Equipment,Uttoxeter Leisure Centre,"1,906.00",Smallwood Manor School Enterprises Ltd
B,SI,03/11/2014,Equipment,Meadowside Leisure Centre,"21,792.07",Societe Generale Equipment Finance Limited
B,SI,28/11/2014,Equipment,Meadowside Leisure Centre,"21,792.07",Societe Generale Equipment Finance Limited
B,SI,11/11/2014,LDF Preparation and Examination,Planning Policy,"1,550.46",South Staffordshire Council
B,SI,21/10/2014,LDF Preparation and Examination,Planning Policy,985.58,South Staffordshire Council
B,SI,12/09/2014,Electricity,Cemeteries,585.22,South Staffordshire Water Plc
B,SI,01/10/2014,Water Services,Meadowside Leisure Centre,"1,441.36",South Staffordshire Water Plc
B,SI,01/11/2014,Water Services,Meadowside Leisure Centre,"1,562.88",South Staffordshire Water Plc
B,SI,29/11/2014,Water Services,Meadowside Leisure Centre,"1,232.36",South Staffordshire Water Plc
B,SI,22/11/2014,Water Services,Public Conveniences,592.81,South Staffordshire Water Plc
B,SI,22/11/2014,Water Services,Public Conveniences,553.09,South Staffordshire Water Plc
B,SI,30/08/2014,Water Services,Burton Retail Market,"1,039.87",South Staffordshire Water Plc
B,SI,30/08/2014,Water Services,Open Spaces,850.25,South Staffordshire Water Plc
B,SI,29/10/2014,Water Services,Facilities Management,578.13,South Staffordshire Water Plc
B,SI,29/10/2014,Water Services,Facilities Management,"3,756.33",South Staffordshire Water Plc
B,SI,13/10/2014,Electricity,Meadowside Leisure Centre,"6,089.30",Southern Electric
B,SI,13/10/2014,Electricity,Meadowside Leisure Centre,"2,319.92",Southern Electric
B,SI,13/11/2014,Electricity,Meadowside Leisure Centre,"6,130.07",Southern Electric
B,SI,13/11/2014,Electricity,Meadowside Leisure Centre,"2,478.21",Southern Electric
B,SI,11/12/2014,Electricity,Meadowside Leisure Centre,"5,894.73",Southern Electric
B,SI,11/12/2014,Electricity,Meadowside Leisure Centre,"2,417.88",Southern Electric
B,SI,13/11/2014,Electricity,Public Conveniences,540.89,Southern Electric
B,SI,13/11/2014,Electricity,Brewhouse Arts Centre,643.17,Southern Electric
B,SI,11/12/2014,Electricity,Brewhouse Arts Centre,653.65,Southern Electric
B,SI,13/11/2014,Electricity,Shobnall Leisure Complex,631.66,Southern Electric
B,SI,13/10/2014,Electricity,Shobnall Leisure Complex,"1,144.63",Southern Electric
B,SI,11/12/2014,Electricity,Shobnall Leisure Complex,620.27,Southern Electric
B,SI,13/10/2014,Electricity,Burton Retail Market,944.96,Southern Electric
B,SI,13/11/2014,Electricity,Burton Retail Market,"1,234.02",Southern Electric
B,SI,11/12/2014,Electricity,Burton Retail Market,"1,671.15",Southern Electric
B,SI,13/10/2014,Electricity,Uttoxeter Leisure Centre,"3,237.47",Southern Electric
B,SI,13/11/2014,Electricity,Uttoxeter Leisure Centre,"3,963.45",Southern Electric
B,SI,11/12/2014,Electricity,Uttoxeter Leisure Centre,"3,635.96",Southern Electric
B,SI,13/10/2014,Electricity,Facilities Management,"1,118.17",Southern Electric
B,SI,13/11/2014,Electricity,Facilities Management,"1,524.27",Southern Electric
B,SI,11/12/2014,Electricity,Facilities Management,"2,464.19",Southern Electric
B,SI,13/10/2014,Electricity,Wetmore Maltings (New Offices),"1,767.99",Southern Electric
B,SI,24/11/2014,Electricity,Wetmore Maltings (New Offices),"1,856.59",Southern Electric
B,SI,11/12/2014,Electricity,Wetmore Maltings (New Offices),"1,806.76",Southern Electric
B,SI,23/09/2014,Items for Resale,Meadowside Leisure Centre,598.04,Speedo International Ltd
B,SI,13/10/2014,Wasps Expenditure,Ward Action Service Plans,854.85,St Saviours Church
B,SI,13/10/2014,Legal Costs,Planning Policy,"50,000.00",St. Modwen Developments Ltd
B,SI,29/09/2014,Rents,Village & Community Halls,921.75,Staffordshire County Council
B,SI,17/10/2014,Management Fee,Decriminalised Parking,"4,000.00",Staffordshire County Council
B,PI,24/11/2014,Subscriptions,Licensing,"1,500.00",Staffordshire County Council
B,SI,16/10/2014,Search and Investigation Fees,Land Charges,"4,123.50",Staffordshire County Council
B,SI,23/10/2014,Superannuation Payments,Pension Payments,"21,228.88",Staffordshire County Council
B,SI,04/12/2014,Superannuation Payments,Pension Payments,"21,850.85",Staffordshire County Council
B,SI,04/12/2014,Superannuation Payments,Pension Payments,"20,985.60",Staffordshire County Council
B,SI,14/10/2014,Third Party Payments,Trade Waste Recycling,"5,592.67",Staffordshire County Council
B,SI,24/10/2014,General Grants,Open Spaces,"2,609.00",Staffordshire Ecological Services Limited
B,SI,26/10/2014,Fees and Charges,Building Consultancy Chargeable Activities,"1,221.00",Staffordshire Moorlands D C
B,SI,23/09/2014,General Grants,Open Spaces,"4,000.00",Staffordshire Wildlife Trust
B,SI,07/10/2014,Parish Precept Payments,Parish Council Precepts,"9,514.50",Stapenhill Parish Council
B,SI,02/12/2014,General Grants,Planning Policy,"2,448.33",Stretton Parish Council
B,PI,08/10/2014,Play Equipment,Open Spaces,"1,251.27",Sutcliffe Play
B,PI,28/11/2014,Play Equipment,Open Spaces,"1,850.18",Sutcliffe Play
B,PI,06/10/2014,Wasps Expenditure,Ward Action Service Plans,"7,734.28",Sutcliffe Play
B,PI,26/09/2014,Wasps Expenditure,Ward Action Service Plans,"1,017.46",Sutcliffe Play
B,SI,30/09/2014,Contract Payments,Shobnall Outdoor Changing Rooms (Capital),"2,500.00",Sweett (UK) Ltd
B,SI,31/10/2014,Contract Payments,Shobnall Outdoor Changing Rooms (Capital),"1,000.00",Sweett (UK) Ltd
B,SI,28/11/2014,Contract Payments,Shobnall Outdoor Changing Rooms (Capital),"1,000.00",Sweett (UK) Ltd
B,SI,30/09/2014,Contract Payments,Uttoxeter Leisure Centre Capital,"3,400.00",Sweett (UK) Ltd
B,SI,31/10/2014,Contract Payments,Uttoxeter Leisure Centre Capital,"3,450.00",Sweett (UK) Ltd
B,PI,07/10/2014,Promotional Materials,Recycling,"1,179.10",Synergy Print Management Services
B,SI,30/09/2014,Other Equipment,Meadowside Leisure Centre,"1,230.00",T Clarke (Midlands) Ltd
B,PI,31/10/2014,Other Equipment,Meadowside Leisure Centre,758.00,T Clarke (Midlands) Ltd
B,PI,28/11/2014,Other Equipment,Meadowside Leisure Centre,"4,180.00",T Clarke (Midlands) Ltd
B,SI,24/11/2014,General Grants,Enterprise,"4,312.59",Tag Sports & Promotional Clothing
B,SI,28/09/2014,Consultants,Planning Delivery,"1,650.00",Taylor Young Ltd
B,PI,23/09/2014,External Audit Fees,External Audit,"2,200.00",The Audit Commission
B,PI,26/11/2014,Section 50 Burials,Environmental Health,919.00,The Co-operative Funeralcare
B,SI,08/10/2014,Court Costs Expenditure,Legal Services,746.25,The Copyright Licensing Agency
B,SI,02/12/2014,Rents,Coopers Square Car Park - Surface,975.68,The Hollins Murray Group Limited
B,PI,30/09/2014,Contracted Grounds Maintenance,Cemeteries,"12,363.04",The Landscape Group
B,PI,30/09/2014,Contracted Grounds Maintenance,Cemeteries,"1,092.75",The Landscape Group
B,PI,30/09/2014,Contracted Grounds Maintenance,Cemeteries,"1,816.68",The Landscape Group
B,PI,30/09/2014,Contracted Grounds Maintenance,Cemeteries,"1,352.29",The Landscape Group
B,PI,28/11/2014,Contracted Grounds Maintenance,Cemeteries,"1,870.98",The Landscape Group
B,PI,21/11/2014,Contracted Grounds Maintenance,Cemeteries,"1,471.39",The Landscape Group
B,PI,28/11/2014,Contracted Grounds Maintenance,Cemeteries,"1,920.79",The Landscape Group
B,PI,31/10/2014,Contracted Grounds Maintenance,Cemeteries,"11,869.25",The Landscape Group
B,SI,21/11/2014,Enforcement Initiatives,Enforcement Section,"1,547.00",The Landscape Group
B,PI,30/09/2014,Grounds Maintenance,Land Drainage,"1,173.00",The Landscape Group
B,PI,30/09/2014,Grounds Maintenance,Land Drainage,"2,064.00",The Landscape Group
B,PI,30/09/2014,Grounds Maintenance,Land Drainage,"1,392.00",The Landscape Group
B,PI,30/09/2014,Grounds Maintenance,Open Spaces,"3,064.26",The Landscape Group
B,PI,30/09/2014,Grounds Maintenance,Open Spaces,"4,664.50",The Landscape Group
B,PI,30/09/2014,Grounds Maintenance,Open Spaces,"4,980.61",The Landscape Group
B,PI,30/09/2014,Grounds Maintenance,Open Spaces,692.55,The Landscape Group
B,PI,30/09/2014,Grounds Maintenance,Open Spaces,"2,070.00",The Landscape Group
B,PI,21/11/2014,Grounds Maintenance,Open Spaces,"2,327.86",The Landscape Group
B,PI,21/11/2014,Grounds Maintenance,Open Spaces,"3,847.94",The Landscape Group
B,PI,21/11/2014,Grounds Maintenance,Open Spaces,880.26,The Landscape Group
B,PI,28/11/2014,Grounds Maintenance,Open Spaces,788.98,The Landscape Group
B,PI,28/11/2014,Grounds Maintenance,Open Spaces,"11,781.26",The Landscape Group
B,PI,28/11/2014,Grounds Maintenance,Open Spaces,"5,106.40",The Landscape Group
B,PI,31/10/2014,Grounds Maintenance,Open Spaces,"2,529.39",The Landscape Group
B,PI,28/11/2014,Car Parks Maintenance,Open Spaces,715.00,The Landscape Group
B,PI,31/10/2014,Terms Maintenance,Open Spaces,"1,818.17",The Landscape Group
B,PI,28/11/2014,Terms Maintenance,Open Spaces,966.75,The Landscape Group
B,PI,30/09/2014,Contracted Grounds Maintenance,Open Spaces,"6,935.95",The Landscape Group
B,PI,30/09/2014,Contracted Grounds Maintenance,Open Spaces,"76,385.53",The Landscape Group
B,PI,30/09/2014,Contracted Grounds Maintenance,Open Spaces,"2,011.63",The Landscape Group
B,PI,21/11/2014,Contracted Grounds Maintenance,Open Spaces,889.19,The Landscape Group
B,PI,21/11/2014,Contracted Grounds Maintenance,Open Spaces,"2,691.83",The Landscape Group
B,PI,21/11/2014,Contracted Grounds Maintenance,Open Spaces,"1,593.04",The Landscape Group
B,PI,21/11/2014,Contracted Grounds Maintenance,Open Spaces,"1,818.17",The Landscape Group
B,PI,28/11/2014,Contracted Grounds Maintenance,Open Spaces,"2,440.81",The Landscape Group
B,PI,28/11/2014,Contracted Grounds Maintenance,Open Spaces,"31,086.64",The Landscape Group
B,PI,28/11/2014,Contracted Grounds Maintenance,Open Spaces,"6,935.95",The Landscape Group
B,PI,28/11/2014,Contracted Grounds Maintenance,Open Spaces,617.03,The Landscape Group
B,PI,31/10/2014,Contracted Grounds Maintenance,Open Spaces,"2,390.89",The Landscape Group
B,PI,31/10/2014,Contracted Grounds Maintenance,Open Spaces,"64,982.92",The Landscape Group
B,PI,31/10/2014,Contracted Grounds Maintenance,Open Spaces,"6,935.95",The Landscape Group
B,PI,31/10/2014,Contracted Grounds Maintenance,Open Spaces,"2,468.15",The Landscape Group
B,SI,21/10/2014,Professional Fees,Legal Services,"1,056.00",The Law Society
B,SI,01/12/2014,Medical Examinations,Human Resources,722.50,The Listening Centre
B,PI,10/11/2014,General Grants,Tourism Development,"9,000.00",The National Forest Company
B,SI,06/11/2014,Professional Fees,Planning Delivery,"1,776.33",The Royal Town Planning Institute
B,PI,20/06/2014,Grounds Maintenance,Open Spaces,800.00,Thurlow Countryside Management Limited
B,PI,29/10/2014,Grounds Maintenance,Open Spaces,"1,250.00",Thurlow Countryside Management Limited
B,PI,13/11/2014,Grounds Maintenance,Open Spaces,"1,750.00",Thurlow Countryside Management Limited
B,PI,03/12/2014,Miscellaneous Licenses,Brewhouse Arts Centre,"2,237.19",tickets.com
B,PI,30/09/2014,Christmas Decorations,Grants To Voluntary Orgnstns,"1,000.00",Touch Broadcasting Ltd
B,PI,27/10/2014,Training Expenses,Corporate Training,"2,088.00",Tourism South East
B,SI,26/09/2014,Professional Fees,Civic Function Refurbishment (Capital),"1,100.00",Townsend & Renaudon
B,SI,20/10/2014,Maintenance Contracts,Wetmore Maltings (New Offices),"3,382.00",TRAC Air Conditioning & Environmental Services
B,SI,23/09/2014,Traffic Enforcement Centre,Decriminalised Parking,500.00,Traffic Enforcement Centre
B,PI,10/10/2014,Grounds Maintenance,Open Spaces,"2,000.00",Treewise Solutions Ltd
B,SI,07/11/2014,Subscriptions,Environmental Health,787.50,Trent & Dove Housing
B,SI,06/10/2014,Rents,Housing Options,"2,679.50",Trent & Dove Housing
B,SI,22/09/2014,Rents,Housing Options,931.68,Trent & Dove Housing
B,SI,06/10/2014,Rents,Housing Options,"2,160.00",Trent & Dove Housing
B,SI,19/11/2014,Rent Allowances,Housing Benefits Subsidies,"1,020,936.00",Trent & Dove Housing
B,SI,22/10/2014,Rent Allowances,Housing Benefits Subsidies,"1,024,406.07",Trent & Dove Housing
B,SI,17/12/2014,Rent Allowances,Housing Benefits Subsidies,"1,016,527.99",Trent & Dove Housing
B,SI,29/09/2014,Christmas Decorations,Grants for Tourism,"1,000.00",Tutbury Christmas Festival
B,SI,17/10/2014,General Grants,Neighbourhood Management,"2,950.00",Tutbury Parish Council
B,SI,21/10/2014,Project Grant Payments,Neighbourhood Management,"4,000.00",Tutbury Pre School
B,SI,20/10/2014,Wasps Expenditure,Ward Action Service Plans,"1,300.00",Tutbury Pre-school Playgroup
B,PI,17/11/2014,Consultants,Financial Management Unit,"1,950.00",Unit 4 Business Software (Ireland) Ltd
B,SI,12/12/2014,Software Licenses & Contracts,Financial Management Unit,"5,814.56",Unit4 Business Software Ltd
B,SI,13/10/2014,Exhibitions/Events,Open Spaces,"3,500.00",Uttoxeter Lions
B,SI,14/10/2014,Christmas Decorations,Grants for Tourism,"5,000.00",Uttoxeter Town Council
B,SI,18/11/2014,General Grants,Burton Retail Market,"4,000.00",Uttoxeter Town Council
B,SI,12/12/2014,Arts Worker Fees,Brewhouse Arts Centre,"1,300.00",Vagabond�s Hat
B,SI,30/11/2014,Third Party Payments,Recycling,756.82,Vital Earth GB Ltd
B,SI,30/09/2014,Third Party Payments,Recycling,"1,541.14",Vital Earth GB Ltd
B,SI,31/10/2014,Third Party Payments,Recycling,"1,838.58",Vital Earth GB Ltd
B,SI,15/10/2014,Mobile Telephones,ICT,911.79,Vodafone Limited
B,SI,15/12/2014,Mobile Telephones,ICT,884.31,Vodafone Limited
B,SI,15/11/2014,Mobile Telephones,ICT,876.81,Vodafone Limited
B,SI,01/10/2014,IT Links to Remote Sites,ICT,"2,454.56",Vodafone T/A Cable & Wireless UK
B,PI,24/09/2014,Repairs & Maintenance to Buildings,Meadowside Leisure Centre,"5,815.20",W T Parker Limited
B,PI,13/11/2014,Contract Payments,Uttoxeter Leisure Centre Capital,574.98,WaterCoolersDirect.com Limited
B,SI,18/11/2014,Direct Purchases,DSO Stores Account,"29,985.00",Watson Petroleum Ltd
B,SI,25/09/2014,Website Construction & Maintenance,Programmes & Information,550.00,Web Optic Limited
B,SI,17/09/2014,Rents,Anderstaff Industrial Estate,"21,359.00",Westbury Developments Limited
B,PI,30/09/2014,Play Equipment,Open Spaces,788.36,Wicksteed Leisure Ltd
B,SI,30/09/2014,Third Party Payments,Recycling,"7,050.55",Willshee�s Skip Hire
B,SI,31/10/2014,Third Party Payments,Recycling,"21,880.32",Willshee�s Skip Hire
B,SI,31/10/2014,Third Party Payments,Recycling,"5,686.12",Willshee�s Skip Hire
B,SI,30/09/2014,Third Party Payments,Refuse Collection,"28,487.20",Willshee�s Skip Hire
B,PI,30/11/2014,Third Party Payments,Refuse Collection,"21,981.40",Willshee�s Skip Hire
B,SI,30/09/2014,Third Party Payments,Street Cleaning,"1,021.07",Willshee�s Skip Hire
B,PI,30/11/2014,Third Party Payments,Street Cleaning,"1,830.56",Willshee�s Skip Hire
B,SI,31/10/2014,Third Party Payments,Street Cleaning,"2,175.87",Willshee�s Skip Hire
B,PI,14/11/2014,Repairs & Maintenance to Buildings,Brewhouse Arts Centre,695.00,Woodward Electrical
B,PI,10/11/2014,Litter Bins,Street Cleaning,"2,500.00",Wybone Ltd
B,PI,14/11/2014,Litter Bins,Street Cleaning,"2,710.08",Wybone Ltd
B,PI,12/11/2014,Litter Bins,Street Cleaning,"7,355.31",Wybone Ltd
B,PI,11/12/2014,Litter Bins,Open Spaces,"6,790.89",Wybone Ltd
B,PI,30/10/2014,Software Licenses & Contracts,Leisure Centres,"1,279.75",Xn Leisure Systems Limited
B,PI,05/12/2014,Advertising,Brewhouse Arts Centre,"1,829.17",Yes Response Ltd
B,PI,03/12/2014,Training Expenses,Corporate Training,"2,200.00",Young Programme Events Ltd
B,SI,16/10/2014,Arts Worker Fees,Brewhouse Arts Centre,900.00,Zest Theatre
